bitfinex-derivatives/quotes_SOLF0:USTF0_20250131
["timestamp","ask_amount","ask_price","bid_price","bid_amount"]
[1738366507724,6.23418666,230.36,230.27,2.8124]
[1738366507928,6.23418666,230.29,230.27,1.3905]
[1738366508833,0.03231581,230.3,230.27,7.62468666]
[1738366509127,6.23418666,230.36,230.3,4.3431]
[1738366509328,6.23418666,230.36,230.27,9.02698666]
[1738366509930,6.23418666,230.36,230.3,4.3432]
[1738366510225,0.02874479,230.34,230.3,4.3432]
[1738366510933,0.02874479,230.34,230.33,4.3426]
[1738366511132,6.23418666,230.38,230.29,6.26298335]
[1738366511429,6.23418666,230.4,230.31,6.23418666]
[1738366512224,6.23418666,230.4,230.37,4.3418]
[1738366512432,0.68624105,230.46,230.33,0.02948558]
[1738366512632,6.23418666,230.44,230.35,6.23418666]
[1738366512832,6.23418666,230.44,230.37,6.23418666]
[1738366513337,6.23418666,230.44,230.39,4.3415]
[1738366513723,6.2667914,230.44,230.39,4.37386854]
[1738366514031,6.2667914,230.44,230.39,0.03236854]
[1738366514231,6.2667914,230.44,230.4,4.3413]
[1738366514625,6.2667914,230.44,230.39,0.03236854]
[1738366515626,6.2667914,230.44,230.39,4.37386854]
[1738366515832,6.2667914,230.44,230.39,0.03236854]
[1738366516033,0.03260474,230.44,230.41,4.341]
[1738366516735,10.6073914,230.44,230.39,0.03236854]
[1738366517435,10.6073914,230.44,230.39,4.37386854]
[1738366518336,6.2667914,230.44,230.4,4.3412]
[1738366518926,6.2667914,230.44,230.39,0.03236854]
[1738366519133,10.6073914,230.44,230.39,0.03236854]
[1738366519333,6.2667914,230.44,230.39,0.03236854]
[1738366520637,0.03260474,230.44,230.39,0.03236854]
[1738366520837,0.03260474,230.44,230.39,6.2665552]
[1738366522035,0.03260474,230.44,230.39,0.03236854]
[1738366522238,0.03260474,230.44,230.42,4.3408]
[1738366525843,0.03260474,230.44,230.41,6.23418666]
[1738366526045,0.03260474,230.44,230.43,4.3407]
[1738366528950,6.23418666,230.5,230.46,4.3401]
[1738366529545,4.3396,230.49,230.44,4.3404]
[1738366530142,4.3714847,230.49,230.44,4.36911953]
[1738366530649,10.57398666,230.48,230.44,0.02871953]
[1738366530946,6.23418666,230.46,230.44,0.02871953]
[1738366531352,4.3403,230.45,230.44,0.02871953]
[1738366533446,6.23418666,230.46,230.36,1.4576]
[1738366533649,6.23418666,230.39,230.3,1.4063]
[1738366534046,10.57568666,230.39,230.3,1.4063]
[1738366534450,6.23418666,230.37,230.32,4.3428]
[1738366534646,6.26527973,230.37,230.32,4.37552934]
[1738366535149,6.23418666,230.35,230.32,0.03272934]
[1738366536647,4.3422,230.36,230.32,0.03272934]
[1738366537352,0.03109307,230.37,230.32,0.03272934]
[1738366538249,0.03109307,230.37,230.35,4.3422]
[1738366538450,0.03109307,230.37,230.35,6.23418666]
[1738366538649,0.03109307,230.37,230.36,4.342]
[1738366551356,6.23418666,230.45,230.35,6.23418666]
[1738366551357,4.3402,230.46,230.41,4.341]
[1738366552055,4.34,230.47,230.42,4.3409]
[1738366552257,6.23418666,230.49,230.41,6.23418666]
[1738366552454,0.03060059,230.47,230.43,4.3407]
[1738366553657,0.03060059,230.47,230.45,4.3403]
[1738366554151,0.03060059,230.47,230.46,4.3402]
[1738366555958,0.03060059,230.47,230.45,6.23418666]
[1738366555959,6.26478725,230.47,230.42,0.02970322]
[1738366556159,6.23418666,230.43,230.42,0.02970322]
[1738366556458,10.57488666,230.43,230.42,0.02970322]
[1738366556655,6.23418666,230.43,230.42,0.02970322]
[1738366556855,0.03060059,230.47,230.42,0.02970322]
[1738366556856,6.23418666,230.45,230.42,0.02970322]
[1738366557258,4.3406,230.44,230.42,0.02970322]
[1738366557958,10.57488666,230.43,230.42,0.02970322]
[1738366558357,6.23418666,230.43,230.31,7.57498666]
[1738366558556,6.23418666,230.39,230.31,7.57498666]
[1738366559455,0.03217672,230.37,230.33,0.02804939]
[1738366559859,0.03217672,230.37,230.34,4.3423]
[1738366560060,0.03217672,230.37,230.33,0.02804939]
[1738366560556,6.26636338,230.37,230.33,0.02804939]
[1738366561865,10.60826338,230.37,230.33,0.02804939]
[1738366562061,6.26636338,230.37,230.33,0.02804939]
[1738366562359,0.03217672,230.37,230.33,4.37064939]
[1738366563963,0.03217672,230.37,230.34,4.3423]
[1738366564663,0.03217672,230.37,230.33,0.02804939]
[1738366564869,0.03217672,230.37,230.35,4.3422]
[1738366565267,0.03217672,230.37,230.33,0.02804939]
[1738366565564,6.26636338,230.37,230.33,0.02804939]
[1738366565770,0.03217672,230.37,230.33,0.02804939]
[1738366565973,4.3421,230.36,230.33,0.02804939]
[1738366567075,0.03217672,230.37,230.33,0.02804939]
[1738366568274,0.03217672,230.37,230.34,4.3424]
[1738366569176,0.03217672,230.37,230.33,0.02804939]
[1738366570674,0.03217672,230.37,230.33,4.37064939]
[1738366572176,0.03217672,230.37,230.33,0.02804939]
[1738366573471,0.03217672,230.37,230.33,4.37044939]
[1738366576579,0.03217672,230.37,230.34,4.3424]
[1738366576779,0.03217672,230.37,230.33,0.02804939]
[1738366577480,0.03217672,230.37,230.36,4.342]
[1738366578078,0.03217672,230.37,230.33,0.02804939]
[1738366579879,4.37407672,230.37,230.33,4.37064939]
[1738366580077,0.03217672,230.37,230.33,0.02804939]
[1738366580580,0.03217672,230.37,230.36,4.342]
[1738366581781,0.03217672,230.37,230.34,4.3423]
[1738366582878,0.03217672,230.37,230.33,0.02804939]
[1738366583479,4.342,230.36,230.33,0.02804939]
[1738366588488,0.03217672,230.37,230.33,0.02804939]
[1738366588687,4.3423,230.35,230.33,0.02804939]
[1738366589587,4.3424,230.34,230.33,0.02804939]
[1738366591591,10.59693401,230.34,230.33,0.02804939]
[1738366592390,4.3422,230.36,230.33,0.02804939]
[1738366593592,0.03217672,230.37,230.33,10.6250834]
[1738366593894,0.03217672,230.37,230.33,6.2825834]
[1738366594284,0.03217672,230.37,230.35,4.3422]
[1738366594495,0.03217672,230.37,230.35,6.25453401]
[1738366594897,0.03217672,230.37,230.36,4.342]
[1738366595193,6.25453401,230.48,230.35,6.25453401]
[1738366595393,4.3402,230.46,230.4,10.59573401]
[1738366595591,6.25453401,230.48,230.4,6.25453401]
[1738366596090,10.59433401,230.48,230.4,6.25453401]
[1738366596394,0.02988613,230.46,230.42,0.03126624]
[1738366597097,0.02988613,230.46,230.44,10.59503401]
[1738366599998,4.3393,230.51,230.45,4.3403]
[1738366600992,6.25453401,230.52,230.44,6.25453401]
[1738366601197,0.02999198,230.5,230.46,4.3402]
[1738366601495,0.02999198,230.5,230.44,6.25453401]
[1738366601699,0.02999198,230.5,230.46,0.02785486]
[1738366602489,4.36939198,230.5,230.46,0.02785486]
[1738366602897,10.62392599,230.5,230.46,0.02785486]
[1738366603396,4.3396,230.49,230.46,0.02785486]
[1738366605099,4.34,230.47,230.46,0.02785486]
[1738366606396,6.25453401,230.48,230.32,6.25453401]
[1738366606602,6.25453401,230.38,230.32,6.25453401]
[1738366607394,6.25453401,230.38,230.3,6.25453401]
[1738366607602,0.0303514,230.37,230.33,0.02974112]
[1738366608801,4.3722514,230.37,230.33,0.02974112]
[1738366611101,0.0303514,230.37,230.34,4.3424]
[1738366612502,0.0303514,230.37,230.36,4.342]
[1738366615603,0.0303514,230.37,230.36,10.59653401]
[1738366621107,4.3401,230.47,230.41,4.3409]
[1738366621312,4.3401,230.47,230.41,6.25453401]
[1738366622207,0.03264004,230.46,230.42,0.03184648]
[1738366622705,0.03264004,230.46,230.43,6.25453401]
[1738366623108,0.03264004,230.46,230.43,4.3407]
[1738366623506,0.03264004,230.46,230.42,0.03184648]
[1738366625113,0.03264004,230.46,230.43,6.25453401]
[1738366625806,0.03264004,230.46,230.45,10.59483401]
[1738366629611,6.25453401,230.55,230.5,4.3393]
[1738366629812,6.25453401,230.58,230.5,6.25453401]
[1738366630515,4.3385,230.55,230.5,10.59383401]
[1738366631013,4.36742388,230.55,230.5,10.62250525]
[1738366631513,4.36742388,230.55,230.51,4.3392]
[1738366632012,4.36742388,230.55,230.5,0.02867124]
[1738366632815,4.36742388,230.55,230.5,4.36807124]
[1738366633315,10.59323401,230.54,230.5,0.02867124]
[1738366634018,10.59323401,230.54,230.5,4.36807124]
[1738366634314,4.3387,230.54,230.5,4.36807124]
[1738366635917,0.02892388,230.55,230.5,0.02867124]
[1738366636219,0.02892388,230.55,230.51,4.3391]
[1738366639123,0.02892388,230.55,230.52,4.339]
[1738366640920,4.36742388,230.55,230.5,4.36787124]
[1738366641316,4.36742388,230.55,230.5,0.02867124]
[1738366641822,4.36742388,230.55,230.51,4.339]
[1738366642224,0.02892388,230.55,230.5,6.28320525]
[1738366642424,0.02892388,230.55,230.52,6.25453401]
[1738366643823,0.02892388,230.55,230.54,4.3387]
[1738366645117,0.02892388,230.55,230.54,10.59323401]
[1738366646119,0.02892388,230.55,230.54,4.3387]
[1738366650534,0.02892388,230.55,230.54,10.59323401]
[1738366650734,2.388e-05,230.55,230.54,10.59323401]
[1738366670654,4.336,230.68,230.63,4.3369]
[1738366670849,46.22885893,230.72,230.63,6.25453401]
[1738366671251,4.3355,230.71,230.65,4.3365]
[1738366671652,0.0318525,230.7,230.66,0.03153331]
[1738366672348,0.0318525,230.7,230.66,4.36783331]
[1738366672551,0.0318525,230.7,230.66,0.03153331]
[1738366672750,0.0318525,230.7,230.67,6.25453401]
[1738366673756,0.0318525,230.7,230.69,4.3358]
[1738366674248,0.0318525,230.7,230.67,6.25453401]
[1738366674648,0.0318525,230.7,230.68,4.336]
[1738366675253,0.0318525,230.7,230.69,6.25453401]
[1738366677252,0.0318525,230.7,230.69,10.59033401]
[1738366679361,0.0318525,230.7,230.69,6.25453401]
[1738366680459,4.3362,230.67,230.66,0.03153331]
[1738366680656,10.59073401,230.67,230.66,0.03153331]
[1738366680861,6.25453401,230.67,230.56,6.25453401]
[1738366681061,1.4409,230.69,230.56,6.25453401]
[1738366681062,6.25453401,230.62,230.56,6.25453401]
[1738366681664,6.25453401,230.64,230.56,10.59263401]
[1738366682064,0.02823382,230.62,230.58,0.0281451]
[1738366682260,0.02823382,230.62,230.58,10.62057911]
[1738366682565,0.02823382,230.62,230.58,6.28267911]
[1738366683569,0.02823382,230.62,230.6,6.25453401]
[1738366683965,0.02823382,230.62,230.61,4.3373]
[1738366684370,3.382e-05,230.62,230.61,4.3373]
[1738366688069,6.25453401,230.74,230.6,6.25453401]
[1738366688268,6.25453401,230.74,230.66,10.59083401]
[1738366689075,4.3353,230.72,230.66,10.59083401]
[1738366689270,0.03221522,230.72,230.68,0.02888751]
[1738366692276,6.28674923,230.72,230.68,0.02888751]
[1738366693274,4.3358,230.69,230.68,0.02888751]
[1738366697282,6.25453401,230.7,230.6,6.25453401]
[1738366697578,4.3371,230.63,230.58,6.25453401]
[1738366698480,4.3373,230.62,230.58,6.28709618]
[1738366698979,4.3373,230.62,230.58,10.62499618]
[1738366699381,0.03104855,230.63,230.58,10.62499618]
[1738366700483,0.03104855,230.63,230.6,6.25453401]
[1738366700881,0.03104855,230.63,230.62,6.25453401]
[1738366701180,0.03104855,230.63,230.6,10.59183401]
[1738366703984,0.03104855,230.63,230.61,4.3373]
[1738366704381,0.03104855,230.63,230.62,6.25453401]
[1738366705178,0.03104855,230.63,230.62,10.59173401]
[1738366706684,0.03104855,230.63,230.6,6.25453401]
[1738366707779,0.03104855,230.63,230.6,10.59203401]
[1738366709887,0.03104855,230.63,230.6,6.25453401]
[1738366710383,0.03104855,230.63,230.62,6.25453401]
[1738366711390,0.03104855,230.63,230.62,10.59173401]
[1738366713588,4.336,230.69,230.64,4.3366]
[1738366713781,4.336,230.69,230.65,6.25453401]
[1738366714785,4.36537319,230.69,230.65,6.28395179]
[1738366715587,0.02937319,230.69,230.67,6.25453401]
[1738366716788,0.02937319,230.69,230.67,10.59053401]
[1738366717986,4.3344,230.77,230.73,4.3351]
[1738366718187,6.25453401,230.79,230.71,6.25453401]
[1738366718887,0.03003439,230.77,230.73,0.02763902]
[1738366719790,4.3346,230.76,230.73,0.02763902]
[1738366720391,0.03003439,230.77,230.73,0.02763902]
[1738366720592,4.3347,230.75,230.73,0.02763902]
[1738366721392,4.3349,230.74,230.73,0.02763902]
[1738366724391,6.25453401,230.75,230.65,6.25453401]
[1738366725094,6.25453401,230.73,230.63,6.25453401]
[1738366725594,6.25453401,230.73,230.66,0.03149454]
[1738366725595,0.02939314,230.7,230.66,0.03149454]
[1738366726692,4.3362,230.67,230.66,0.03149454]
[1738366730900,4.336,230.69,230.66,0.03149454]
[1738366732799,0.02939314,230.7,230.66,0.03149454]
[1738366732999,4.336,230.68,230.66,0.03149454]
[1738366735004,4.3358,230.69,230.66,0.03149454]
[1738366738297,0.02939314,230.7,230.66,0.03149454]
[1738366738504,4.36509314,230.7,230.67,6.25453401]
[1738366740711,4.36509314,230.7,230.66,0.03149454]
[1738366743114,0.02939314,230.7,230.66,0.03149454]
[1738366743413,4.3362,230.67,230.66,0.03149454]
[1738366747511,0.02939314,230.7,230.66,0.03149454]
[1738366747717,0.02939314,230.7,230.67,6.25453401]
[1738366747912,0.02939314,230.7,230.69,6.25453401]
[1738366748519,0.02939314,230.7,230.69,10.59033401]
[1738366748920,4.3343,230.78,230.74,6.25453401]
[1738366749321,23.8022364,230.8,230.74,6.25453401]
[1738366749821,4.3345,230.77,230.74,6.25453401]
[1738366750023,4.3345,230.77,230.75,0.02753945]
[1738366750520,4.3345,230.76,230.75,0.02753945]
[1738366751422,10.58903401,230.76,230.75,0.02753945]
[1738366754725,4.3345,230.76,230.75,0.02753945]
[1738366756022,0.02877401,230.79,230.75,0.02753945]
[1738366756226,4.3343,230.78,230.75,0.02753945]
[1738366757228,4.3344,230.77,230.75,0.02753945]
[1738366757927,0.02877401,230.79,230.75,0.02753945]
[1738366758123,0.02877401,230.79,230.76,6.25453401]
[1738366759222,0.02877401,230.79,230.78,6.25453401]
[1738366760826,0.02877401,230.79,230.76,6.25453401]
[1738366761032,0.02877401,230.79,230.77,4.3343]
[1738366763127,0.02877401,230.79,230.78,6.25453401]
[1738366764732,0.02877401,230.79,230.77,4.3343]
[1738366765030,0.02877401,230.79,230.78,6.25453401]
[1738366765432,0.02877401,230.79,230.76,6.25453401]
[1738366767129,0.02877401,230.79,230.75,0.02753945]
[1738366767335,4.3345,230.76,230.75,0.02753945]
[1738366781349,10.58903401,230.76,230.75,3.945e-05]
[1738366783748,4.3363,230.67,230.62,10.59153401]
[1738366784050,1.3499,230.78,230.62,6.25453401]
[1738366784051,6.25453401,230.7,230.62,6.25453401]
[1738366784253,6.25453401,230.72,230.64,6.25453401]
[1738366784553,6.25453401,230.74,230.66,6.25453401]
[1738366784949,0.02948058,230.72,230.68,0.03102259]
[1738366785344,4.3355,230.71,230.68,0.03102259]
[1738366785545,0.02948058,230.72,230.68,6.2855566]
[1738366787354,0.02948058,230.72,230.68,10.6215566]
[1738366788357,0.02948058,230.72,230.7,6.25453401]
[1738366790258,7.58403401,230.82,230.73,4.335]
[1738366790459,4.3341,230.79,230.73,10.58953401]
[1738366790758,7.22770449,230.84,230.75,6.25453401]
[1738366791058,4.3338,230.81,230.77,6.25453401]
[1738366791362,0.97317048,230.84,230.77,6.25453401]
[1738366791555,0.02810193,230.81,230.77,6.28690197]
[1738366792755,0.02810193,230.81,230.77,10.62120197]
[1738366795262,0.02810193,230.81,230.79,6.25453401]
[1738366796863,0.02810193,230.81,230.77,6.28690197]
[1738366797561,0.02810193,230.81,230.77,10.62120197]
[1738366797767,0.02810193,230.81,230.79,6.25453401]
[1738366799867,0.02810193,230.81,230.79,10.58833401]
[1738366801566,0.02810193,230.81,230.78,1.3697]
[1738366803160,0.02810193,230.81,230.78,5.7038]
[1738366805570,0.02810193,230.81,230.79,6.25453401]
[1738366810478,0.02810193,230.81,230.78,1.3697]
[1738366810680,4.36170193,230.81,230.77,10.62120197]
[1738366810978,0.02810193,230.81,230.77,10.62120197]
[1738366811582,0.02810193,230.81,230.78,4.3341]
[1738366811979,0.02810193,230.81,230.79,6.25453401]
[1738366812983,0.02810193,230.81,230.79,10.58843401]
[1738366813783,0.02810193,230.81,230.79,6.25453401]
[1738366813983,0.02810193,230.81,230.8,4.3338]
[1738366816084,46.70566505,230.92,230.82,4.3332]
[1738366816285,4.3321,230.9,230.85,6.25453401]
[1738366817083,4.3321,230.89,230.85,6.25453401]
[1738366817286,4.3321,230.89,230.85,6.28512561]
[1738366817585,4.3325,230.87,230.85,0.0305916]
[1738366820188,4.3326,230.86,230.85,0.0305916]
[1738366828497,46.70566505,230.92,230.85,0.0305916]
[1738366828498,4.3324,230.88,230.85,0.0305916]
[1738366828698,46.70566505,230.92,230.85,0.0305916]
[1738366829194,46.70566505,230.92,230.85,6.28512561]
[1738366829400,6.25453401,230.92,230.85,6.28512561]
[1738366830199,4.3321,230.89,230.85,6.28512561]
[1738366833302,7.29617221,230.94,230.85,6.28512561]
[1738366833501,6.25453401,230.9,230.85,0.0305916]
[1738366834503,10.58713401,230.86,230.85,0.0305916]
[1738366834899,6.25453401,230.86,230.75,6.25453401]
[1738366835101,4.334,230.79,230.75,6.25453401]
[1738366835302,6.25453401,230.83,230.75,6.25453401]
[1738366835499,4.3338,230.8,230.75,10.58923401]
[1738366835700,6.25453401,230.85,230.77,6.25453401]
[1738366835899,0.03233706,230.83,230.79,0.0298304]
[1738366836101,0.03233706,230.83,230.81,6.25453401]
[1738366837799,0.03233706,230.83,230.81,10.58803401]
[1738366838901,0.03233706,230.83,230.81,6.25453401]
[1738366839103,4.3319,230.91,230.87,6.25453401]
[1738366839605,6.98980697,230.94,230.89,6.25453401]
[1738366839899,6.98980697,230.94,230.91,6.25453401]
[1738366840099,5.94816877,230.94,230.91,6.25453401]
[1738366841002,5.94816877,230.94,230.91,10.58613401]
[1738366841210,5.94816877,230.94,230.91,6.25453401]
[1738366843007,22.18506763,230.95,230.91,6.25453401]
[1738366843008,4.331,230.95,230.91,6.25453401]
[1738366843207,4.3303,230.99,230.93,6.25453401]
[1738366843405,6.25453401,231.04,230.97,6.25453401]
[1738366843808,4.3296,231.03,230.98,0.02814272]
[1738366844009,6.25453401,231.02,230.98,0.02814272]
[1738366844609,6.25453401,231.0,230.98,0.02814272]
[1738366845004,4.3302,230.99,230.98,0.02814272]
[1738366850109,6.25453401,231.0,230.91,6.25453401]
[1738366850314,6.25453401,230.96,230.87,6.25453401]
[1738366850511,6.25453401,230.94,230.87,6.25453401]
[1738366851414,4.332,230.9,230.88,0.02838072]
[1738366851609,0.02790525,230.93,230.88,0.02838072]
[1738366851815,4.3317,230.91,230.88,0.02838072]
[1738366852113,0.02790525,230.93,230.89,6.25453401]
[1738366852616,4.3315,230.92,230.89,6.25453401]
[1738366852912,0.02790525,230.93,230.89,6.25453401]
[1738366853215,0.02790525,230.93,230.92,4.3315]
[1738366859324,4.33,231.0,230.95,4.3309]
[1738366859520,4.3303,230.99,230.94,6.25453401]
[1738366860021,6.25453401,231.02,230.94,6.25453401]
[1738366860222,4.3306,230.97,230.92,10.58593401]
[1738366860520,6.25453401,231.0,230.96,0.03049412]
[1738366860922,4.3306,230.97,230.96,0.03049412]
[1738366863318,4.3315,230.93,230.88,6.25453401]
[1738366863520,6.25453401,230.98,230.88,6.25453401]
[1738366863923,4.3312,230.94,230.89,4.3321]
[1738366864120,4.3312,230.94,230.88,6.25453401]
[1738366864423,0.0313559,230.93,230.89,0.03279045]
[1738366865722,4.3315,230.92,230.89,0.03279045]
[1738366865923,0.0313559,230.93,230.89,0.03279045]
[1738366866329,0.0313559,230.93,230.9,6.25453401]
[1738366867217,4.3628559,230.93,230.9,6.25453401]
[1738366867521,0.0313559,230.93,230.9,6.25453401]
[1738366870029,4.3627559,230.93,230.9,6.25453401]
[1738366870627,0.0313559,230.93,230.9,6.25453401]
[1738366870929,4.3316,230.92,230.9,6.25453401]
[1738366871630,0.0313559,230.93,230.89,0.03279045]
[1738366871924,4.3319,230.9,230.89,0.03279045]
[1738366876332,0.0313559,230.93,230.89,0.03279045]
[1738366876533,4.3317,230.91,230.89,0.03279045]
[1738366879241,0.0313559,230.93,230.9,6.25453401]
[1738366880535,0.0313559,230.93,230.92,6.25453401]
[1738366881733,0.0313559,230.93,230.92,10.58603401]
[1738366884435,0.0313559,230.93,230.92,6.25453401]
[1738366886943,0.0313559,230.93,230.92,10.58603401]
[1738366893852,0.0313559,230.93,230.92,6.25453401]
[1738366894055,0.0313559,230.93,230.89,0.03279045]
[1738366894256,4.3317,230.92,230.89,0.03279045]
[1738366894752,4.3318,230.91,230.89,0.03279045]
[1738366896049,0.0313559,230.93,230.89,0.03279045]
[1738366896254,4.3315,230.92,230.89,0.03279045]
[1738366898557,0.0313559,230.93,230.9,6.25453401]
[1738366898957,0.0313559,230.93,230.89,0.03279045]
[1738366899159,6.25453401,230.92,230.89,0.03279045]
[1738366899555,6.25453401,230.9,230.89,0.03279045]
[1738366899756,4.3319,230.9,230.89,0.03279045]
[1738366905260,0.0313559,230.93,230.89,0.03279045]
[1738366905459,4.3626559,230.93,230.89,0.03279045]
[1738366906159,0.0313559,230.93,230.89,0.03279045]
[1738366906656,0.0313559,230.93,230.9,6.25453401]
[1738366907253,0.0313559,230.93,230.92,6.25453401]
[1738366910258,0.0313559,230.93,230.92,10.58603401]
[1738366912666,0.0313559,230.93,230.92,6.25453401]
[1738366917064,0.0313559,230.93,230.92,10.58603401]
[1738366917775,0.0313559,230.93,230.92,6.25453401]
[1738366920678,0.0313559,230.93,230.9,6.25453401]
[1738366921881,0.0313559,230.93,230.89,0.03279045]
[1738366922879,4.3317,230.91,230.89,0.03279045]
[1738366923478,0.0313559,230.93,230.89,0.03279045]
[1738366924874,4.3317,230.91,230.89,0.03279045]
[1738366925980,4.3628559,230.93,230.9,6.25453401]
[1738366926776,4.3628559,230.93,230.89,0.03279045]
[1738366927582,4.3316,230.92,230.89,0.03279045]
[1738366927978,0.0313559,230.93,230.89,0.03279045]
[1738366928283,0.0313559,230.93,230.91,4.3317]
[1738366928482,0.0313559,230.93,230.92,6.25453401]
[1738366929584,0.0313559,230.93,230.92,10.58603401]
[1738366933387,6.25453401,231.04,230.95,4.3309]
[1738366933589,6.25453401,231.04,230.96,6.25453401]
[1738366934185,6.25453401,231.02,230.96,6.25453401]
[1738366934388,4.3302,230.99,230.97,0.02918101]
[1738366934584,6.25453401,231.02,230.97,0.02918101]
[1738366935083,4.3304,230.98,230.97,0.02918101]
[1738366975316,6.25453401,231.02,230.97,0.02918101]
[1738366975516,4.3303,230.99,230.97,0.02918101]
[1738366976918,6.25453401,231.06,230.97,0.02918101]
[1738366977116,6.25453401,231.06,230.98,6.25453401]
[1738366978518,4.3297,231.02,230.98,6.25453401]
[1738366979520,6.25453401,231.0,230.97,0.02918101]
[1738366980021,4.3302,230.99,230.97,0.02918101]
[1738366981817,6.25453401,231.0,230.97,0.02918101]
[1738366982021,4.3304,230.98,230.97,0.02918101]
[1738366984922,10.58493401,230.98,230.97,0.02918101]
[1738366987026,4.3304,230.98,230.97,0.02918101]
[1738366990126,4.3302,231.0,230.97,0.02918101]
[1738366990623,4.3303,230.99,230.97,0.02918101]
[1738366992229,4.3304,230.98,230.97,0.02918101]
[1738367000323,6.25453401,231.02,230.97,0.02918101]
[1738367000535,4.3299,231.01,230.97,4.35968101]
[1738367003032,4.3297,231.02,230.97,4.35968101]
[1738367006335,6.25453401,231.04,230.97,4.35968101]
[1738367006535,4.3299,231.01,230.97,4.35968101]
[1738367007336,4.3304,230.98,230.97,0.02918101]
[1738367010031,10.58493401,230.98,230.97,0.02918101]
[1738367016745,4.3304,230.98,230.97,0.02918101]
[1738367017946,6.25453401,231.02,230.97,0.02918101]
[1738367019546,4.3304,230.98,230.97,0.02918101]
[1738367020148,4.3302,230.99,230.97,0.02918101]
[1738367023856,6.25453401,231.04,230.97,0.02918101]
[1738367024754,6.25453401,231.04,230.98,4.3304]
[1738367024949,6.25453401,231.04,230.97,0.02918101]
[1738367025756,4.3299,231.01,230.97,0.02918101]
[1738367026858,4.3303,230.99,230.97,0.02918101]
[1738367027963,4.3304,230.98,230.97,0.02918101]
[1738367028254,10.58493401,230.98,230.97,0.02918101]
[1738367029862,4.3304,230.98,230.97,0.02918101]
[1738367032165,6.25453401,231.0,230.97,0.02918101]
[1738367032365,4.3301,231.0,230.97,0.02918101]
[1738367035066,4.3299,231.01,230.97,0.02918101]
[1738367041070,4.33,231.0,230.97,0.02918101]
[1738367042975,6.25453401,231.04,230.97,0.02918101]
[1738367043173,6.25453401,231.06,230.99,4.3302]
[1738367043670,6.25453401,231.06,231.0,0.02963831]
[1738367046074,4.3293,231.04,231.0,0.02963831]
[1738367047572,10.58343401,231.06,231.01,4.3298]
[1738367047773,4.3289,231.06,231.01,4.3298]
[1738367047973,6.25453401,231.08,231.0,6.28417232]
[1738367048565,6.25453401,231.06,231.0,6.28417232]
[1738367048773,6.25453401,231.06,231.0,0.02963831]
[1738367050776,4.3294,231.04,231.0,0.02963831]
[1738367051075,6.25453401,231.06,231.0,0.02963831]
[1738367051879,4.3295,231.03,231.0,0.02963831]
[1738367052378,4.3298,231.01,231.0,0.02963831]
[1738367060282,4.3296,231.03,231.0,0.02963831]
[1738367064578,10.58353401,231.06,231.01,4.3298]
[1738367064882,6.25453401,231.08,231.01,4.3298]
[1738367065180,4.3289,231.06,231.01,4.3298]
[1738367065984,4.3293,231.04,231.0,6.28417232]
[1738367066185,6.25453401,231.06,231.0,0.02963831]
[1738367066884,4.3295,231.03,231.0,0.02963831]
[1738367067085,6.25453401,231.04,231.0,0.02963831]
[1738367068279,4.3295,231.03,231.0,0.02963831]
[1738367068483,6.25453401,231.04,231.0,0.02963831]
[1738367069787,6.25453401,231.02,231.0,0.02963831]
[1738367070190,4.3298,231.01,231.0,0.02963831]
[1738367082297,6.25453401,231.05,231.0,0.02963831]
[1738367083899,4.3294,231.04,231.0,0.02963831]
[1738367084794,6.25453401,231.07,231.0,6.28417232]
[1738367085604,6.25453401,231.07,231.02,4.3296]
[1738367086003,6.25453401,231.09,231.02,6.25453401]
[1738367086804,4.3286,231.08,231.02,6.25453401]
[1738367087005,6.25453401,231.07,231.01,4.3297]
[1738367087606,4.3294,231.04,231.0,0.02963831]
[1738367092915,6.25453401,231.05,231.0,0.02963831]
[1738367093114,10.58363401,231.05,231.0,0.02963831]
[1738367093814,4.3293,231.04,231.0,0.02963831]
[1738367103129,6.25453401,231.05,231.0,0.02963831]
[1738367103330,6.25453401,231.03,231.0,0.02963831]
[1738367103830,4.3297,231.02,231.0,0.02963831]
[1738367105731,4.3298,231.01,231.0,0.02963831]
[1738367105931,6.25453401,231.03,231.0,0.02963831]
[1738367106631,4.3297,231.02,231.0,0.02963831]
[1738367107533,4.3295,231.04,231.0,0.02963831]
[1738367107724,6.25453401,231.05,231.0,0.02963831]
[1738367107928,6.25453401,231.03,231.0,0.02963831]
[1738367108732,4.3298,231.02,231.0,0.02963831]
[1738367110729,1.03335944,231.1,231.0,0.02963831]
[1738367110730,10.58433401,231.01,231.0,0.02963831]
[1738367130541,10.58433401,231.01,231.0,3.831e-05]
[1738367131345,10.58433401,231.01,230.87,1.3735]
[1738367131346,4.3318,230.91,230.87,1.3735]
[1738367132248,4.3315,230.92,230.87,1.3735]
[1738367132444,0.03215034,230.91,230.87,1.40428522]
[1738367135544,4.36395034,230.91,230.87,1.40428522]